bitfinex/quotes_SOLUSD_20240625
["timestamp","ask_amount","ask_price","bid_price","bid_amount"]
[1719286849346,100.0,136.42,136.35,15.5796]
[1719286849584,200.0,136.41,136.35,15.5796]
[1719286849879,100.0,136.41,136.35,15.5796]
[1719286850070,200.0,136.41,136.35,15.5796]
[1719286850247,200.0,136.41,136.3,6.3135]
[1719286850451,200.0,136.39,136.3,6.3135]
[1719286850649,100.0,136.37,136.3,6.3135]
[1719286851279,200.0,136.37,136.3,6.3135]
[1719286851852,100.0,136.33,136.26,6.3135]
[1719286852482,200.0,136.33,136.26,6.3135]
[1719286853252,200.0,136.35,136.26,6.3135]
[1719286853588,200.0,136.39,136.26,37.9635]
[1719286853754,100.0,136.37,136.26,37.9635]
[1719286854085,200.0,136.37,136.26,37.9635]
[1719286854250,100.0,136.36,136.26,37.9635]
[1719286854661,100.0,136.34,136.26,37.9635]
[1719286854887,100.0,136.36,136.26,37.9635]
[1719286855057,100.0,136.37,136.27,45.0]
[1719286855388,200.0,136.37,136.27,45.0]
[1719286857287,200.0,136.35,136.26,37.9635]
[1719286857681,100.0,136.37,136.27,45.0]
[1719286857883,100.0,136.42,136.32,31.65]
[1719286858099,100.0,136.42,136.33,45.0]
[1719286858280,100.0,136.42,136.32,31.65]
[1719286858481,100.0,136.41,136.32,31.65]
[1719286858790,100.0,136.43,136.33,45.0]
[1719286859091,100.0,136.41,136.32,31.65]
[1719286859267,100.0,136.41,136.33,45.0]
[1719286859466,200.0,136.43,136.32,31.65]
[1719286859771,100.0,136.42,136.33,45.0]
[1719286860285,100.0,136.44,136.33,45.0]
[1719286860796,100.0,136.44,136.36,46.964]
[1719286861162,100.0,136.44,136.37,6.414]
[1719286861796,100.0,136.46,136.37,6.414]
[1719286861977,100.0,136.48,136.4,31.65]
[1719286862567,200.0,136.48,136.4,31.65]
[1719286863189,100.0,136.5,136.4,31.65]
[1719286863394,100.0,136.5,136.37,28.544]
[1719286863395,100.0,136.5,136.44,31.65]
[1719286864667,100.0,136.48,136.42,21.728]
[1719286864867,100.0,136.49,136.42,21.728]
[1719286864868,100.0,136.46,136.42,21.728]
[1719286865086,100.0,136.46,136.42,6.414]
[1719286866308,100.0,136.46,136.42,6.414]
[1719286866993,100.0,136.44,136.38,15.0178]
[1719286870293,100.0,136.49,136.43,31.65]
[1719286872478,100.0,136.53,136.47,31.65]
[1719286872790,100.0,136.55,136.47,31.65]
[1719286872791,200.0,136.55,136.54,5.859]
[1719286873577,200.0,136.55,136.52,14.6498]
[1719286873578,200.0,136.57,136.55,5.8584]
[1719286873889,200.0,136.57,136.55,5.8582]
[1719286874196,200.0,136.55,136.54,14.6468]
[1719286874382,100.0,136.52,136.45,15.7172]
[1719286874582,100.0,136.52,136.5,5.8607]
[1719286874798,100.0,136.5,136.45,14.6571]
[1719286875117,100.0,136.5,136.47,14.6543]
[1719286875394,200.0,136.52,136.47,14.6543]
[1719286875789,200.0,136.52,136.48,5.8612]
[1719286875977,200.0,136.52,136.47,14.6543]
[1719286876175,100.0,136.52,136.47,14.6543]
[1719286876486,100.0,136.54,136.44,37.7644]
[1719286876689,200.0,136.56,136.48,31.65]
[1719286876909,100.0,136.54,136.51,14.6499]
[1719286877102,200.0,136.56,136.53,5.8595]
[1719286878000,100.0,136.6,136.52,31.65]
[1719286878251,100.0,136.6,136.58,14.6431]
[1719286878423,100.0,136.6,136.58,20.5004]
[1719286878707,100.0,136.6,136.58,14.6431]
[1719286878890,200.0,136.6,136.54,14.6472]
[1719286879088,200.0,136.6,136.54,20.5058]
[1719286879288,200.0,136.6,136.55,5.8584]
[1719286879777,200.0,136.57,136.52,5.8596]
[1719286880399,100.0,136.54,136.5,52.1619]
[1719286880611,100.0,136.54,136.49,5.8611]
[1719286880907,100.0,136.53,136.49,5.8611]
[1719286881225,100.0,136.49,136.45,16.5149]
[1719286881376,100.0,136.49,136.47,5.8617]
[1719286881701,100.0,136.51,136.48,5.8616]
[1719286881885,100.0,136.53,136.45,16.5149]
[1719286882081,100.0,136.53,136.47,31.65]
[1719286882295,100.0,136.55,136.51,5.86]
[1719286882496,100.0,136.52,136.47,46.305]
[1719286882712,100.0,136.52,136.49,5.8612]
[1719286883005,100.0,136.52,136.47,46.305]
[1719286883207,100.0,136.53,136.47,46.305]
[1719286883405,100.0,136.53,136.5,5.8607]
[1719286883702,100.0,136.51,136.48,5.8612]
[1719286884129,100.0,136.51,136.47,46.305]
[1719286884130,100.0,136.51,136.49,5.8611]
[1719286884510,100.0,136.51,136.47,20.5166]
[1719286884727,200.0,136.49,136.44,20.5212]
[1719286884884,100.0,136.46,136.44,14.6581]
[1719286885086,100.0,136.46,136.44,20.5214]
[1719286885384,100.0,136.45,136.44,5.8633]
[1719286885609,100.0,136.45,136.44,5.8632]
[1719286886115,100.0,136.47,136.45,5.8629]
[1719286886402,100.0,136.45,136.43,14.6588]
[1719286886603,100.0,136.45,136.42,5.8639]
[1719286886813,100.0,136.45,136.38,6.5513]
[1719286887206,100.0,136.47,136.38,6.5513]
[1719286887391,100.0,136.47,136.45,5.8628]
[1719286887594,100.0,136.42,136.38,6.5513]
[1719286887794,100.0,136.42,136.37,16.5614]
[1719286888017,200.0,136.43,136.41,5.8646]
[1719286888199,200.0,136.43,136.42,5.8642]
[1719286888406,200.0,136.43,136.41,14.6606]
[1719286888407,200.0,136.43,136.41,20.5252]
[1719286888716,200.0,136.45,136.44,14.6584]
[1719286888906,100.0,136.4,136.39,20.5293]
[1719286889108,100.0,136.42,136.41,5.8646]
[1719286889408,100.0,136.46,136.37,29.3315]
[1719286889604,100.0,136.45,136.37,29.3315]
[1719286889810,100.0,136.45,136.42,14.6606]
[1719286890013,100.0,136.43,136.42,14.6606]
[1719286890889,100.0,136.43,136.42,20.5248]
[1719286892685,100.0,136.45,136.44,5.8633]
[1719286894405,100.0,136.45,136.42,14.6606]
[1719286894719,100.0,136.45,136.44,5.8633]
[1719286895214,100.0,136.45,136.42,14.6606]
[1719286895420,100.0,136.46,136.44,14.6575]
[1719286895593,100.0,136.45,136.44,20.5208]
[1719286895795,100.0,136.41,136.37,29.3315]
[1719286896921,100.0,136.43,136.42,5.8642]
[1719286898409,200.0,136.41,136.4,20.5278]
[1719286898595,100.0,136.41,136.4,20.5278]
[1719286899230,200.0,136.41,136.4,20.5278]
[1719286901421,100.0,136.39,136.33,60.9888]
[1719286901723,200.0,136.45,136.33,60.9888]
[1719286901925,100.0,136.46,136.37,31.65]
[1719286902432,100.0,136.46,136.45,5.8625]
[1719286903421,100.0,136.48,136.47,5.862]
[1719286903626,100.0,136.5,136.49,5.8612]
[1719286904126,100.0,136.49,136.48,20.5148]
[1719286904316,100.0,136.49,136.48,14.6532]
[1719286904523,100.0,136.49,136.48,20.5148]
[1719286905207,200.0,136.47,136.4,29.3255]
[1719286905729,100.0,136.47,136.46,5.8625]
[1719286906426,100.0,136.46,136.45,20.5194]
[1719286906606,100.0,136.46,136.45,14.6565]
[1719286907329,100.0,136.47,136.45,20.5194]
[1719286907626,100.0,136.47,136.45,14.6565]
[1719286907829,100.0,136.47,136.46,5.8625]
[1719286908626,100.0,136.47,136.45,20.5193]
[1719286910624,100.0,136.46,136.45,20.5193]
[1719286910809,100.0,136.46,136.45,14.6565]
[1719286912916,100.0,136.47,136.45,14.6565]
[1719286914029,100.0,136.49,136.4,29.3255]
[1719286914214,100.0,136.5,136.43,6.2093]
[1719286914729,100.0,136.49,136.43,6.2093]
[1719286917071,100.0,136.5,136.49,5.8612]
[1719286917400,200.0,136.53,136.43,6.2093]
[1719286917938,200.0,136.49,136.43,6.2093]
[1719286918116,200.0,136.52,136.47,5.8617]
[1719286918840,200.0,136.49,136.46,20.5182]
[1719286919645,200.0,136.51,136.47,5.8616]
[1719286919819,100.0,136.48,136.46,14.6558]
[1719286920131,11.01404037,136.55,136.46,14.6558]
[1719286920132,100.0,136.5,136.46,20.518]
[1719286920333,100.0,136.5,136.48,5.8615]
[1719286920836,100.0,136.5,136.46,14.6558]
[1719286921029,100.0,136.48,136.43,20.8684]
[1719286921336,100.0,136.53,136.52,5.8599]
[1719286921645,100.0,136.53,136.48,29.308]
[1719286921646,100.0,136.53,136.5,14.6514]
[1719286921813,100.0,136.53,136.49,5.8609]
[1719286922022,100.0,136.53,136.48,14.6534]
[1719286922608,100.0,136.53,136.5,5.8607]
[1719286922829,100.0,136.53,136.51,5.86]
[1719286923012,100.0,136.52,136.47,14.6549]
[1719286923926,100.0,136.51,136.47,14.6549]
[1719286924229,200.0,136.55,136.43,37.8593]
[1719286924415,200.0,136.55,136.44,45.0]
[1719286924416,100.0,136.53,136.44,45.0]
[1719286924620,200.0,136.53,136.43,37.8593]
[1719286924816,200.0,136.51,136.43,37.8593]
[1719286927631,200.0,136.49,136.43,37.8593]
[1719286928132,100.0,136.52,136.48,5.8615]
[1719286928327,100.0,136.52,136.43,37.8593]
[1719286928328,100.0,136.48,136.46,5.8621]
[1719286929639,100.0,136.48,136.45,14.6573]
[1719286930023,100.0,136.48,136.45,20.5198]
[1719286930823,100.0,136.48,136.46,5.8625]
[1719286931658,10.99237529,136.55,136.54,5.859]
[1719286931850,10.99237529,136.55,136.48,37.7832]
[1719286931851,111.07516985,136.61,136.57,14.6441]
[1719286932147,10.99237529,136.6,136.58,5.8572]
[1719286932345,100.0,136.59,136.57,14.6441]
[1719286932515,10.99237529,136.6,136.54,20.5062]
[1719286932837,10.99237529,136.59,136.56,5.858]
[1719286933234,10.99237529,136.59,136.56,14.6448]
[1719286934446,200.08279456,136.61,136.56,14.6448]
[1719286934736,100.0,136.57,136.53,14.6485]
[1719286935741,100.0,136.56,136.5,5.8604]
[1719286935935,100.0,136.55,136.5,5.8604]
[1719286936719,100.0,136.53,136.48,5.8614]
[1719286938145,100.0,136.52,136.46,20.518]
[1719286938342,100.0,136.52,136.47,5.862]
[1719286938723,100.0,136.51,136.47,5.862]
[1719286939221,200.0,136.53,136.48,5.8616]
[1719286939420,200.0,136.53,136.47,5.862]
[1719286940438,205.8596,136.53,136.46,14.656]
[1719286940641,200.0,136.51,136.46,5.8623]
[1719286941143,200.0,136.51,136.43,31.65]
[1719286941439,200.0,136.51,136.47,14.6545]
[1719286941832,100.0,136.51,136.47,14.6545]
[1719286942183,200.0,136.53,136.48,5.8615]
[1719286942336,200.0,136.53,136.47,20.5165]
[1719286943241,15.4649,136.56,136.5,5.8604]
[1719286943426,15.4649,136.56,136.43,31.65]
[1719286943427,100.0,136.53,136.43,31.65]
[1719286944447,10.99161133,136.58,136.45,29.3127]
[1719286944643,10.99161133,136.58,136.48,31.65]
[1719286945154,10.99161133,136.58,136.52,14.6494]
[1719286945448,10.99161133,136.58,136.52,20.5092]
[1719286946055,110.99161133,136.58,136.52,20.5092]
[1719286946639,10.99161133,136.58,136.52,20.5092]
[1719286946834,110.99141659,136.58,136.52,20.5092]
[1719286947217,100.0,136.58,136.52,20.5092]
[1719286947421,10.99142519,136.58,136.52,20.5092]
[1719286947644,110.99142519,136.58,136.52,20.5092]
[1719286948547,100.0,136.53,136.45,29.3127]
[1719286948735,100.0,136.53,136.45,43.9698]
[1719286948937,100.0,136.52,136.46,5.8624]
[1719286949333,10.99142519,136.58,136.56,5.8582]
[1719286949725,10.99142519,136.58,136.56,5.8581]
[1719286949941,0.08279456,136.61,136.56,5.8581]
[1719286950163,10.99075215,136.59,136.55,20.5047]
[1719286950457,10.99075215,136.59,136.52,14.6493]
[1719286950752,10.99075215,136.59,136.53,45.0]
[1719286950924,10.99075215,136.59,136.54,14.6472]
[1719286951125,10.99075215,136.59,136.54,20.5062]
[1719286951863,110.99075215,136.59,136.54,14.6472]
[1719286952193,200.0,136.57,136.51,20.5106]
[1719286952361,205.8578,136.57,136.51,14.6503]
[1719286952848,100.0,136.57,136.51,20.5106]
[1719286953030,10.99101639,136.58,136.51,20.5106]
[1719286953464,200.0,136.56,136.48,14.6537]
[1719286953632,205.8582,136.56,136.49,5.8611]
[1719286953839,5.8583,136.56,136.49,5.8611]
[1719286954040,100.0,136.55,136.49,5.8611]
[1719286954274,100.0,136.56,136.48,14.6537]
[1719286954433,100.0,136.55,136.49,5.8612]
[1719286954635,100.0,136.53,136.47,5.8617]
[1719286954842,100.0,136.53,136.46,15.8635]
[1719286955046,100.0,136.53,136.47,14.6547]
[1719286955256,205.8583,136.56,136.49,5.861]
[1719286956776,100.0,136.54,136.48,5.8615]
[1719286957223,100.0,136.53,136.48,5.8615]
[1719286957551,100.0,136.54,136.49,5.8612]
[1719286957758,100.0,136.52,136.5,5.8607]
[1719286958170,200.0,136.54,136.49,5.8611]
[1719286958746,110.99122578,136.57,136.52,5.8598]
[1719286958980,10.99122578,136.58,136.54,5.859]
[1719286959276,10.99096315,136.58,136.53,20.5077]
[1719286959479,110.99096315,136.58,136.53,14.6483]
[1719286959769,10.99096315,136.58,136.54,5.859]
[1719286960454,10.99096315,136.58,136.54,5.8587]
[1719286960658,10.99096315,136.58,136.53,20.5077]
[1719286961939,110.99096315,136.59,136.54,5.859]
[1719286962368,10.99096315,136.58,136.53,20.5077]
[1719286962554,10.99096315,136.58,136.54,5.8589]
[1719286962762,10.99096315,136.58,136.53,20.5077]
[1719286962964,10.99096315,136.58,136.54,5.8587]
[1719286963351,10.99096315,136.58,136.53,20.5076]
[1719286963548,116.84836315,136.58,136.51,5.8603]
[1719286963746,10.99096315,136.58,136.52,5.8596]
[1719286964048,110.99096315,136.59,136.53,5.8594]
[1719286964281,10.99096315,136.58,136.52,14.6491]
[1719286964745,110.99096315,136.59,136.52,14.6491]
[1719286965149,110.99096315,136.59,136.48,60.9563]
[1719286965150,110.99096315,136.59,136.55,5.8583]
[1719286965371,10.99033971,136.58,136.54,20.5062]
[1719286965871,10.99066878,136.58,136.54,14.6473]
[1719286966252,10.99066878,136.58,136.53,5.8593]
[1719286966578,10.99066878,136.58,136.51,20.5103]
[1719286966776,10.99066878,136.58,136.52,5.8598]
[1719286967564,10.99066878,136.58,136.53,14.648]
[1719286967786,10.99066878,136.58,136.57,5.8578]
[1719286967972,0.08279456,136.61,136.55,22.6752]
[1719286967973,11.07346334,136.61,136.59,5.8569]
[1719286968480,0.08279456,136.61,136.59,5.8569]
[1719286969154,10.99021664,136.6,136.58,14.6432]
[1719286969356,10.99021664,136.59,136.58,20.5005]
[1719286972773,10.98960149,136.59,136.56,20.503]
[1719286973091,10.98960149,136.6,136.57,5.8577]
[1719286973661,10.98960149,136.59,136.56,20.5033]
[1719286973896,10.98960149,136.6,136.56,20.5033]
[1719286974068,10.98960149,136.59,136.56,20.5033]
[1719286974379,10.98960149,136.59,136.55,5.8586]
[1719286974589,10.99048923,136.59,136.53,14.648]
[1719286974795,10.99048923,136.59,136.55,5.8582]
[1719286974998,10.99075276,136.59,136.55,5.8582]
[1719286975210,10.99075276,136.58,136.55,5.8582]
[1719286976389,10.99071149,136.58,136.54,5.8589]
[1719286976891,10.99071149,136.58,136.55,5.8586]
[1719286977392,10.99071149,136.59,136.55,5.8586]
[1719286977581,0.08279456,136.61,136.55,14.6457]
[1719286977897,10.99069923,136.58,136.55,14.6457]
[1719286978885,10.99069923,136.58,136.56,5.8578]
[1719286979681,10.99071801,136.58,136.56,5.8578]
[1719286980699,10.9908649,136.58,136.56,5.858]
[1719286981297,10.9908649,136.58,136.55,20.5043]
[1719286981897,10.9908649,136.59,136.55,20.5043]
[1719286982102,10.9908649,136.58,136.56,5.8581]
[1719286982399,10.9908649,136.58,136.55,20.5043]
[1719286982774,10.9908649,136.58,136.56,5.8581]
[1719286982972,100.08279456,136.61,136.56,5.8581]
[1719286983186,10.99078716,136.59,136.57,5.8578]
[1719286983373,10.99078716,136.59,136.58,5.8573]
[1719286983589,10.98986497,136.59,136.55,14.6457]
[1719286983992,10.98986497,136.59,136.57,5.8574]
[1719286984171,10.98986497,136.59,136.55,14.6457]
[1719286984573,10.98986497,136.59,136.57,5.8576]
[1719286984871,10.98986497,136.59,136.55,14.6457]
[1719286985070,10.98986497,136.59,136.58,5.8573]
[1719286985498,10.98986497,136.6,136.59,5.8569]
[1719286986078,0.08279456,136.61,136.6,20.4977]
[1719286988080,11.0718823,136.61,136.6,20.4977]
[1719286988280,11.07189802,136.61,136.6,20.4977]
[1719286988572,11.07189802,136.61,136.6,76.8402]
[1719286988778,0.08279456,136.61,136.6,121.8402]
[1719286989085,0.08279456,136.61,136.6,47.5577]
[1719286989493,0.08279456,136.61,136.6,20.4977]
[1719286993105,0.08279456,136.61,136.6,76.8402]
[1719286993313,0.08279456,136.61,136.6,121.8402]
[1719286993606,0.08279456,136.61,136.6,76.8402]
[1719286994494,0.08279456,136.61,136.6,121.8402]
[1719286995700,0.880316,136.64,136.63,20.4932]
[1719286996014,0.04356611,136.69,136.68,20.4857]
[1719286996177,0.04356611,136.69,136.65,14.6356]
[1719286996382,0.04356611,136.69,136.68,5.853]
[1719286998180,0.04356611,136.69,136.68,32.913]
[1719287000807,0.04356611,136.69,136.68,5.853]
[1719287001186,100.04356611,136.69,136.64,14.6365]
[1719287001707,0.04356611,136.69,136.67,5.8535]
[1719287002012,0.04356611,136.69,136.66,20.4881]
[1719287002241,100.04356611,136.69,136.66,14.6343]
[1719287002984,100.04356611,136.69,136.64,32.9147]
[1719287003497,100.04356611,136.69,136.65,5.8543]
[1719287004003,100.04356611,136.69,136.65,14.6354]
[1719287004197,100.0,136.66,136.62,14.6387]
[1719287004510,200.0,136.66,136.62,20.4942]
[1719287004801,100.0,136.66,136.62,20.4942]
[1719287006117,100.0,136.64,136.62,20.4942]
[1719287007009,100.0,136.64,136.59,41.7019]
[1719287007217,200.0,136.64,136.61,5.8558]
[1719287007411,100.0,136.64,136.61,14.6397]
[1719287007908,100.0,136.64,136.61,20.4957]
[1719287008499,200.0,136.64,136.61,20.4957]
[1719287008801,100.0,136.64,136.61,20.4957]
[1719287009917,200.0,136.64,136.61,20.4957]
[1719287010817,200.0,136.64,136.62,5.8556]
[1719287011112,100.0,136.64,136.62,5.8556]
[1719287011295,200.0,136.66,136.62,5.8556]
[1719287011691,100.0,136.62,136.58,14.6428]
[1719287011887,100.0,136.61,136.58,14.6428]
[1719287012195,100.0,136.65,136.6,14.6408]
[1719287012395,100.0,136.65,136.63,5.8551]
[1719287013226,100.0,136.66,136.64,14.6364]
[1719287013425,100.0,136.64,136.62,5.8555]
[1719287013603,100.0,136.65,136.63,5.8552]
[1719287013912,100.0,136.63,136.61,14.6398]
[1719287014323,100.0,136.64,136.61,14.6398]
[1719287014504,100.0,136.64,136.61,20.4955]
[1719287014708,100.0,136.66,136.63,5.8551]
[1719287014896,106.4949,136.67,136.64,5.8544]
[1719287015095,100.0,136.66,136.63,20.4927]
[1719287015393,100.0,136.67,136.64,5.8547]
[1719287016526,100.0,136.66,136.63,20.4928]
[1719287016897,0.04356611,136.69,136.64,101.3331]
[1719287017212,0.04356611,136.69,136.64,56.3331]
[1719287017413,100.0,136.68,136.64,27.06]
[1719287018007,100.0,136.68,136.67,5.8535]
[1719287018204,0.04356611,136.69,136.68,5.853]
[1719287018720,0.04356611,136.69,136.67,5.8533]
[1719287019212,100.0,136.68,136.67,5.8533]
[1719287019619,0.04356611,136.69,136.67,5.8533]
[1719287019815,0.04356611,136.69,136.68,5.853]
[1719287020125,100.0,136.68,136.66,20.4875]
[1719287020422,0.04356611,136.69,136.66,20.4875]
[1719287021020,200.0,136.68,136.65,5.8543]
[1719287021522,100.0,136.68,136.65,5.8543]
[1719287021709,200.0,136.68,136.65,5.8543]
[1719287022225,200.0,136.68,136.64,5.8546]
[1719287022605,0.04356611,136.69,136.63,43.912]
[1719287022814,0.04356611,136.69,136.66,5.8539]
[1719287023008,0.04356611,136.69,136.67,5.8534]
[1719287023402,0.04356611,136.69,136.66,5.8538]
[1719287023717,100.0,136.68,136.65,14.6353]
[1719287024022,100.0,136.68,136.66,5.8538]
[1719287024606,100.0,136.68,136.67,5.8535]
[1719287025505,100.0,136.68,136.66,5.8538]
[1719287025827,100.0,136.67,136.63,5.855]
[1719287026211,100.0,136.68,136.65,5.8542]
[1719287026408,100.0,136.68,136.67,5.8535]
[1719287026610,100.0,136.68,136.66,5.8538]
[1719287027329,100.0,136.68,136.65,14.635]
[1719287027512,100.0,136.64,136.57,29.2881]
[1719287027717,100.0,136.66,136.57,29.2881]
[1719287027920,100.0,136.66,136.57,56.3481]
[1719287028609,100.0,136.66,136.63,14.6376]
[1719287028813,100.0,136.66,136.64,5.8547]
[1719287029110,100.0,136.66,136.57,56.3481]
[1719287029111,200.0,136.66,136.62,5.8555]
[1719287029411,100.0,136.64,136.62,5.8555]
[1719287030033,200.0,136.64,136.61,5.8559]
[1719287031130,100.0,136.62,136.61,5.856]
[1719287031732,200.0,136.62,136.61,5.856]
[1719287032033,100.0,136.62,136.6,20.4968]
[1719287032332,200.0,136.62,136.6,20.4968]
[1719287032532,200.0,136.62,136.6,14.6406]
[1719287033833,200.0,136.6,136.57,5.8574]
[1719287034035,100.0,136.6,136.58,5.8571]
[1719287034413,100.0,136.6,136.59,5.8569]
[1719287037842,200.0,136.6,136.59,5.8569]
[1719287038641,100.0,136.6,136.59,5.8569]
[1719287039020,100.0,136.6,136.58,29.5201]
[1719287039338,200.0,136.6,136.58,9.02]
[1719287039520,100.0,136.6,136.58,9.02]
[1719287039716,100.0,136.6,136.58,14.877]
[1719287039921,100.0,136.6,136.59,9.02]
[1719287040227,100.0,136.6,136.59,14.8769]
[1719287040615,31.2567,136.65,136.61,14.6398]
[1719287040616,100.0,136.64,136.61,14.6398]
[1719287040920,100.0,136.63,136.61,29.5155]
[1719287041309,100.0,136.63,136.62,5.8556]
[1719287042315,216.3823,136.65,136.61,23.6598]
[1719287042721,216.3823,136.65,136.62,5.8555]
[1719287043732,100.0,136.63,136.62,5.8555]
[1719287043943,200.0,136.63,136.6,5.856]
[1719287044149,200.0,136.63,136.6,9.02]
[1719287044329,200.0,136.63,136.61,5.8559]
[1719287044851,100.0,136.63,136.61,5.856]
[1719287045051,200.0,136.63,136.6,14.6408]
[1719287045348,200.0,136.63,136.6,29.5172]
[1719287046043,100.0,136.61,136.6,20.4972]
[1719287046539,200.0,136.63,136.6,20.4972]
[1719287048127,200.0,136.63,136.62,5.8556]
[1719287048332,100.0,136.63,136.61,14.8759]
[1719287048537,100.0,136.63,136.61,5.8559]
[1719287048736,100.0,136.63,136.62,5.8556]
[1719287049442,100.0,136.63,136.61,5.8559]
[1719287049833,200.0,136.63,136.61,5.8559]
[1719287050036,200.0,136.63,136.59,14.642]
[1719287050237,10.99034409,136.6,136.59,20.4989]
[1719287050443,10.99034409,136.6,136.59,29.5189]
[1719287051829,10.99034409,136.6,136.59,20.4989]
[1719287052237,10.99051175,136.6,136.59,20.4989]
[1719287052740,10.99051175,136.6,136.59,29.5189]
[1719287054056,10.99051175,136.6,136.59,20.4989]
[1719287054430,9.49051175,136.6,136.59,20.4989]
[1719287055736,200.0,136.63,136.61,5.8558]
[1719287056459,116.3823,136.65,136.63,5.8551]
[1719287056958,116.3823,136.65,136.63,14.8751]
[1719287057161,100.0,136.65,136.63,14.8751]
[1719287057533,100.0,136.65,136.64,5.8547]
[1719287057734,100.0,136.65,136.63,14.8752]
[1719287058240,100.0,136.63,136.62,5.8553]
[1719287058445,100.0,136.63,136.62,14.8753]
[1719287059841,10.61850254,136.69,136.62,14.8753]
[1719287059842,100.0,136.66,136.64,5.8547]
[1719287060155,100.0,136.66,136.64,14.8747]
[1719287060334,100.0,136.66,136.64,9.02]
[1719287060763,100.0,136.65,136.64,9.02]
[1719287061154,100.0,136.65,136.63,29.5125]
[1719287064858,0.04356611,136.69,136.64,9.02]
[1719287065062,0.04356611,136.69,136.68,14.873]
[1719287067163,100.0,136.68,136.67,14.6331]
[1719287067461,100.0,136.68,136.67,23.6531]
[1719287068137,100.0,136.67,136.65,5.8543]
[1719287068542,100.0,136.67,136.66,5.8539]
[1719287068749,100.0,136.67,136.66,20.4887]
[1719287069876,100.0,136.68,136.67,5.8535]
[1719287070049,100.04356611,136.69,136.66,23.6548]
[1719287070253,100.04356611,136.69,136.67,5.8534]
[1719287070567,100.0,136.67,136.66,29.5086]
[1719287070859,200.04356611,136.69,136.66,29.5086]
[1719287071064,200.04356611,136.69,136.67,5.8534]
[1719287071653,100.0,136.67,136.66,29.5086]
[1719287072973,200.04356611,136.69,136.68,5.853]
[1719287073148,200.04356611,136.69,136.67,5.8534]
[1719287074286,200.0,136.67,136.6,6.0116]
[1719287074487,10.98996953,136.64,136.63,5.8552]
[1719287074684,10.98996953,136.64,136.63,29.5124]
[1719287076272,200.0,136.67,136.65,5.8541]
[1719287076649,200.0,136.67,136.66,5.8539]
[1719287076967,200.0,136.67,136.66,14.8739]
[1719287077958,100.0,136.67,136.66,14.8739]
[1719287078160,200.0,136.67,136.65,14.6352]
[1719287078360,200.0,136.67,136.65,29.5092]
[1719287079073,200.0,136.67,136.66,14.8739]
[1719287080572,200.0,136.67,136.66,9.02]
[1719287081674,200.0,136.67,136.66,14.8739]
[1719287083379,200.0,136.67,136.65,29.5094]
[1719287084580,200.0,136.67,136.66,9.02]
[1719287084890,100.0,136.67,136.66,14.8739]
[1719287085062,200.0,136.67,136.66,14.8739]
[1719287085375,200.0,136.67,136.65,29.5095]
[1719287087380,100.0,136.67,136.66,5.8539]